{"text_format":"3","workbook":"xlsx","n_sheets":2,"sheets":["ОЛ","Data"],"not_rendered":{"images":1,"defined_names":1},"read":"whole","date_system":"1900"}

{"sheet":"ОЛ","index":0,"n_rows":107,"n_cols":23,"rows_kept":107,"merged":[[1,0,1,23],[2,0,2,23],[3,0,3,23],[4,0,4,23],[5,0,5,3],[5,4,5,23],[6,0,6,3],[6,4,6,23],[7,0,7,3],[7,4,7,23],[8,0,8,3],[8,4,8,23],[9,0,9,3],[9,4,9,8],[9,9,9,10],[9,11,9,15],[9,16,9,17],[9,18,9,23],[10,0,10,10],[10,11,10,23],[11,0,11,23],[12,0,12,10],[12,11,12,14],[12,15,12,18],[12,19,12,23],[13,0,13,10],[13,11,13,14],[13,15,13,18],[13,19,13,23],[14,0,14,10],[14,11,14,14],[14,15,14,18],[14,19,14,23],[15,0,15,23],[16,0,16,10],[16,11,16,14],[16,15,16,23],[17,0,17,10],[17,11,17,14],[17,15,17,23],[18,0,18,10],[18,11,18,14],[18,15,18,23],[19,0,19,10],[19,11,19,14],[19,15,19,23],[20,0,20,10],[20,11,20,14],[20,15,20,23],[21,0,21,10],[21,11,21,14],[21,15,21,23],[22,0,22,10],[22,11,22,14],[22,15,22,23],[23,0,23,10],[23,11,23,14],[23,15,23,23],[24,0,24,10],[24,11,24,14],[24,15,24,23],[25,0,25,10],[25,11,25,14],[25,15,25,23],[26,0,26,10],[26,11,26,14],[26,15,26,23],[27,0,27,10],[27,11,27,15],[28,0,28,10],[28,11,28,14],[28,15,28,23],[29,0,29,10],[29,11,29,14],[30,0,30,10],[30,11,30,14],[31,0,31,10],[31,11,31,14],[32,0,32,10],[32,11,32,23],[33,0,33,23],[34,0,34,23],[35,0,35,6],[35,7,35,18],[35,19,35,23],[36,0,36,6],[36,7,36,18],[36,19,36,23],[37,0,37,6],[37,7,37,18],[37,19,37,23],[38,0,38,10],[38,11,38,14],[38,15,38,23],[39,0,39,10],[39,11,39,14],[39,15,39,23],[40,0,40,10],[40,11,40,14],[40,15,40,23],[41,0,41,10],[41,11,41,14],[41,15,41,23],[42,0,42,10],[42,11,42,15],[42,16,42,23],[43,11,43,15],[43,16,43,23],[44,0,44,10],[44,11,44,14],[44,15,44,23],[45,0,45,10],[45,11,45,14],[45,15,45,23],[46,0,46,10],[46,11,46,23],[47,0,47,10],[47,11,47,15],[48,0,48,10],[48,11,48,14],[48,15,48,23],[49,0,49,23],[50,0,50,6],[50,7,50,18],[50,19,50,23],[51,0,51,6],[51,7,51,18],[51,19,51,23],[52,0,52,6],[52,7,52,18],[52,19,52,23],[53,0,53,10],[53,11,53,18],[53,19,53,23],[54,0,54,23],[55,0,55,10],[55,11,55,18],[55,19,55,23],[56,0,56,10],[56,11,56,18],[56,19,56,23],[57,0,57,10],[57,11,57,14],[57,15,57,23],[58,0,58,10],[58,11,58,14],[58,15,58,23],[59,0,59,10],[59,11,59,14],[59,15,59,23],[60,0,60,10],[60,11,60,14],[60,15,60,23],[61,0,61,10],[61,11,61,14],[61,15,61,23],[62,0,62,10],[62,11,62,15],[62,16,62,23],[63,11,63,15],[63,16,63,23],[64,0,64,10],[64,11,64,14],[64,15,64,23],[65,0,65,10],[65,11,65,23],[66,0,66,23],[67,0,67,6],[67,7,67,18],[67,19,67,23],[68,0,68,6],[68,7,68,18],[68,19,68,23],[69,0,69,6],[69,7,69,18],[69,19,69,23],[70,0,70,10],[70,11,70,14],[70,15,70,23],[71,0,71,10],[71,11,71,14],[71,15,71,23],[72,0,72,10],[72,11,72,14],[72,15,72,23],[73,0,73,10],[73,11,73,14],[73,15,73,23],[74,0,74,10],[74,11,74,15],[74,16,74,23],[75,11,75,15],[75,16,75,23],[76,0,76,10],[76,11,76,14],[76,15,76,23],[77,0,77,10],[77,11,77,14],[77,15,77,23],[78,0,78,10],[78,11,78,23],[79,0,79,10],[79,11,79,15],[80,0,80,10],[80,11,80,14],[80,15,80,23],[81,0,81,23],[82,0,82,11],[82,12,82,13],[82,15,82,16],[82,18,82,19],[82,20,82,23],[83,0,83,11],[83,12,83,13],[83,15,83,16],[83,18,83,19],[83,20,83,23],[84,0,84,23],[85,0,85,11],[85,12,85,17],[85,18,85,23],[86,0,86,11],[86,12,86,17],[86,18,86,23],[87,0,87,23],[88,0,88,23],[89,0,89,23],[90,0,90,23],[91,0,91,23],[92,0,92,23],[93,0,93,23],[94,0,94,23],[95,0,95,23],[96,0,96,23],[97,0,97,23],[98,0,98,23],[99,0,99,23],[106,7,106,12],[106,15,106,19]]}
[{"$nulls":22},"ОПРОСНЫЙ ЛИСТ"]
["РАСЧЁТ ТЕПЛОВОГО ПУНКТА"]
["Внимание! Жёлтым выделены необходимые для расчёта параметры."]
["Остальные параметры при отсутствии значений будут приняты по умолчанию."]
["При наличии принципиальной схемы - приложить."]
["Объект"]
["Заказчик объекта"]
["Контактное лицо заказчика"]
["Адрес"]
["Телефон",{"$nulls":8},"Факс",{"$nulls":6},"E-mail"]
["Номер технологической схемы из пособия"]
["Расчетная тепловая мощность"]
["Система отопления",{"$nulls":14},"кВт",{"$nulls":3},"(выбрать из списка)"]
["Система ГВС",{"$nulls":14},"кВт",{"$nulls":3},"(выбрать из списка)"]
["Система вентиляции",{"$nulls":14},"кВт",{"$nulls":3},"(выбрать из списка)"]
["Греющая сторона"]
["Среда",{"$nulls":10},"вода",{"$nulls":3},"вода, гликолевый раствор (указать тип и концентрацию в %)"]
["Источник теплоснабжения",{"$nulls":10},"теплосеть",{"$nulls":3},"теплосеть, котёл, прочее"]
["Температура греющей среды на входе в тепловой пункт (зима)",{"$nulls":14},{"$f":"IF(Data!E27=\"\",\"°С \",Data!E27)","v":"°С "}]
["Температура греющей среды на выходе из теплового пункта (зима)",{"$nulls":14},{"$f":"IF(Data!E27=\"\",\"°С \",Data!E27)","v":"°С "}]
["Температура греющей среды на входе в тепловой пункт (летний период)",{"$nulls":14},{"$f":"IF(Data!E28=\"\",\"°С \",Data!E28)","v":"°С "}]
["Температура греющей среды на выходе из теплового пункта (летний период)",{"$nulls":14},{"$f":"IF(Data!E28=\"\",\"°С \",Data!E28)","v":"°С "}]
["Давление в подающем трубопроводе (зима)",{"$nulls":14},"м в. ст."]
["Давление в обратном трубопроводе (зима)",{"$nulls":14},"м в. ст."]
["Давление в подающем трубопроводе (лето)",{"$nulls":14},"м в. ст."]
["Давление в обратном трубопроводе (лето)",{"$nulls":14},"м в. ст."]
["Диспетчеризация",{"$nulls":10},"не нужна",{"$nulls":3},{"$f":"IF(Data!E29<>\"\",Data!E29,IF(Data!E31<>\"\",Data!E31,\"\"))","v":""}]
["Общий регулятор перепада давления на вводе",{"$nulls":10},"раздельные по системам"]
["Краны",{"$nulls":10},"фланцевые",{"$nulls":3},"+ КИП на вводе"]
["Узел коммерческого учёта",{"$nulls":10},"нужен"]
["Насосы повышения давления в сетевом контуре",{"$nulls":10},"не нужны"]
["Доп. грязевик на обратном трубопроводе",{"$nulls":10},"не нужен"]
["Теплоизоляция трубопроводов",{"$nulls":10},"Kaiflex из вспененного каучука"]
["Нагреваемая сторона"]
["ОТОПЛЕНИЕ"]
["Подключение системы",{"$nulls":6},"независимое",{"$nulls":11},"(выбрать из списка)"]
["Тип теплообменника",{"$nulls":6},"разборный",{"$nulls":11},"(выбрать из списка)"]
["Резервирование ТО",{"$nulls":6},"нет",{"$nulls":11},"(выбрать из списка)"]
["Среда",{"$nulls":10},"вода",{"$nulls":3},"вода, гликолевый раствор (указать тип и концентрацию в %)"]
["Температура нагреваемой среды на входе в теплообменник/узел смешения",{"$nulls":14},{"$f":"IF(Data!E22=\"\",\"°С\",Data!E22)","v":"°С"}]
["Температура нагреваемой среды на выходе из теплообменника/узла смешения",{"$nulls":14},{"$f":"IF(Data!E21=\"\",\"°С\",Data!E21)","v":"°С"}]
["Потери давления в системе (без учёта ТО)",{"$nulls":14},"м в. ст."]
["Циркуляционный насос",{"$nulls":10},"резерв 100%",{"$nulls":4},"(выбрать из списка)"]
["Тип насоса",{"$nulls":10},"с частотным приводом",{"$nulls":4},"(выбрать из списка)"]
["Рабочее давление отопительных приборов ",{"$nulls":14},"м в. ст."]
["Высота здания с учетом техподполья, либо статическое давление в системе",{"$nulls":14},"м"]
["Теплоизоляция трубопроводов",{"$nulls":10},"Kaiflex из вспененного каучука"]
["Расширительный бак",{"$nulls":10},"не нужен"]
["Объём системы отопления",{"$nulls":14},"м³"]
["ГВС"]
["Подключение системы",{"$nulls":6},"с теплообменником",{"$nulls":11},"(выбрать из списка)"]
["Тип теплообменника",{"$nulls":6},"разборный",{"$nulls":11},"(выбрать из списка)"]
["Резервирование ТО",{"$nulls":6},"нет",{"$nulls":11},"(выбрать из списка)"]
["Схема подключения теплообменника ГВС",{"$nulls":10},"двухступенчатая",{"$nulls":7},"(выбрать из списка)"]
[{"$f":"IF(ISNUMBER(Data!C23),\"Соотношение Qh.max/Qo.max = \"&Data!C23&\", согласно п 3.14 СП 41-101-95, рекомендуемая схема подключения: \"&Data!C24,\"\")","v":""}]
["Вариант исполнения двухступенчатого Т/О",{"$nulls":10},"моноблок",{"$nulls":7},"(выбрать из списка)"]
["С каких систем заводить обратку на первую ступень ГВС?",{"$nulls":10},"отопление",{"$nulls":7},"(выбрать из списка)"]
["Температура нагреваемой среды на входе в теплообменник",{"$nulls":14},{"$f":"IF(Data!E26<>\"\",Data!E26,IF(Data!E30<>\"\",Data!E30,\"°С\"))","v":"°С"}]
["Температура нагреваемой среды на выходе из теплообменника",{"$nulls":14},{"$f":"IF(Data!E25<>\"\",Data!E25,IF(Data!E30<>\"\",Data!E30,\"°С\"))","v":"°С"}]
["Макс. часовой расход воды в системе ГВС",{"$nulls":14},"м³/ч"]
["Расход воды на циркуляцию ГВС",{"$nulls":14},"%"]
["Потери давления в трубопроводе циркуляцион. контура ГВС",{"$nulls":14},"м в. ст."]
["Циркуляционный насос",{"$nulls":10},"резерв 100%",{"$nulls":4},"(выбрать из списка)"]
["Тип насоса",{"$nulls":10},"с частотным приводом",{"$nulls":4},"(выбрать из списка)"]
["Давление холодной воды на входе в Т/О",{"$nulls":14},"м в. ст."]
["Теплоизоляция трубопроводов",{"$nulls":10},"Kaiflex из вспененного каучука"]
["ВЕНТИЛЯЦИЯ"]
["Подключение системы",{"$nulls":6},"независимое",{"$nulls":11},"(выбрать из списка)"]
["Тип теплообменника",{"$nulls":6},"разборный",{"$nulls":11},"(выбрать из списка)"]
["Резервирование ТО",{"$nulls":6},"нет",{"$nulls":11},"(выбрать из списка)"]
["Среда",{"$nulls":10},"вода",{"$nulls":3},"вода, гликолевый раствор (%)"]
["Температура нагреваемой среды на входе в теплообменник/узел смешения",{"$nulls":14},{"$f":"IF(Data!E24=\"\",\"°С\",Data!E24)","v":"°С"}]
["Температура нагреваемой среды на выходе из теплообменника/узла смешения",{"$nulls":14},{"$f":"IF(Data!E23=\"\",\"°С\",Data!E23)","v":"°С"}]
["Потери давления в системе (без учёта ТО)",{"$nulls":14},"м в. ст."]
["Циркуляционный насос",{"$nulls":10},"резерв 100%",{"$nulls":4},"(выбрать из списка)"]
["Тип насоса",{"$nulls":10},"с частотным приводом",{"$nulls":4},"(выбрать из списка)"]
["Рабочее давление",{"$nulls":14},"м в. ст."]
["Статическое давление в системе",{"$nulls":14},"м в. ст."]
["Теплоизоляция трубопроводов",{"$nulls":10},"Kaiflex из вспененного каучука"]
["Расширительный бак",{"$nulls":10},"не нужен"]
["Объём системы отопления",{"$nulls":14},"м³"]
["Габаритные размеры"]
["Размер в помещении (длина x ширина x высота)",{"$nulls":13},"×",null,null,"×",null,null,"м"]
["Монтажные проемы (ширина x высота)",{"$nulls":13},"×",null,null,"×",null,null,"м"]
["Требования к тепловому пункту"]
["Максимальное рабочее давление",{"$nulls":11},16,{"$nulls":5},"бар"]
["Максимальная рабочая температура",{"$nulls":11},150,{"$nulls":5},"°С"]
[]
["Дополнительные сведения и требования"]
{"$rows_empty":11}
["Данные выслать по адресу:",{"$nulls":12},"Данные выслать по адресу:"]
["ООО ”Данфосс”",{"$nulls":12},"ООО ”Данфосс”"]
["с. Павловская Слобода, д. Лешково, 217"]
["143 581 Московская обл., Истринский р-н."]
["Тел.  +7 (495) 792 5757 "]
["Фaкс +7 (495) 540 73 64"]
["btp@danfoss.ru"]

{"sheet":"Data","index":1,"n_rows":100,"n_cols":20,"rows_kept":100,"hidden":true}
["Вт","м в. ст.","независимое","с теплообменником","независимое","разборный","нет","двухступенчатая","моноблок","не нужен","Kaiflex из вспененного каучука","не нужна","раздельные по системам","фланцевые","нужен","не нужны","не нужен","резерв 100%","с частотным приводом","отопление"]
["кВт","Па","зависимое","открытая система","зависимое","паяный",{"v":1,"d":"100%"},"одноступенчатая","два отдельных ТО","нужен","Минеральная вата Rockwool","нужна","общий","приварные","не нужен","нужны","нужен","сдвоенный","без частотного привода","вентиляция"]
["МВт","кПа",null,null,"только отводы (приложить схему)",null,{"v":0.5,"d":"50%"},null,null,"предусмотреть отвод","Минеральная вата Rockwool + стальные кожухи",{"$nulls":3},"предусмотреть проставку",null,null,"один насос",null,"отопление + вентиляция"]
["кал/ч","МПа",{"$nulls":4},{"v":0.75,"d":"75%"},{"$nulls":3},"не нужна",{"$nulls":6},"один + насос на склад"]
["ккал/ч","кгс/см²",{"$nulls":15},"не требуется"]
["Мкал/ч","бар"]
["Гкал/ч"]
{"$rows_empty":12}
[{"$nulls":3},"Ошибки"]
[1,"Qo =",{"$f":"INDEX($A$21:$A$27,MATCH(ОЛ!P13,Data!$A$1:$A$20,0))*ОЛ!L13","v":0},"t1o и T2",{"$f":"IF(AND(ОЛ!L19<>\"\",ОЛ!L41<>\"\"),IF(ОЛ!H36=Data!C1,IF(ОЛ!L41>=ОЛ!L19,Data!F21,\"\"),IF(ОЛ!H36=Data!C2,IF(ОЛ!L41>ОЛ!L19,Data!G21,\"\"),\"#ERROR\")),\"\")","v":""},"при независимом подключении системы отопления температура нагреваемой среды на выходе из ТО должна быть ниже температуры греющей среды на его входе","при зависимом подключении системы отопления температура нагреваемой среды на выходе из узла не может быть выше температуры греющей среды на его входе"]
[1000,"Qh.max =",{"$f":"INDEX($A$21:$A$27,MATCH(ОЛ!P14,Data!$A$1:$A$20,0))*ОЛ!L14","v":0},"t2o и T1",{"$f":"IF(AND(ОЛ!L20<>\"\",ОЛ!L40<>\"\"),IF(ОЛ!H36=Data!C1,IF(ОЛ!L40>=ОЛ!L20,Data!F22,\"\"),IF(ОЛ!H36=Data!C2,IF(ОЛ!L40<>ОЛ!L20,Data!G22,\"\"),\"#ERROR\")),\"\")","v":""},"при независимом подключении системы отопления температура нагреваемой среды на входе в ТО должна быть ниже температуры греющей среды на его выходе","при зависимом подключении системы отопления температура нагреваемой среды на входе в узел должна равняться температуре греющей среды на его выходе"]
[1000000,"Qh.max/Qo=",{"$f":"IF(C21<>0,ROUND(C22/C21,3),\"?\")","v":"?"},"t1в и T2",{"$f":"IF(AND(ОЛ!L19<>\"\",ОЛ!L73<>\"\"),\nIF(ОЛ!H68=Data!E1,\nIF(ОЛ!L73>=ОЛ!L19,Data!F23,\"\"),\nIF(ОЛ!H68=Data!E2,\nIF(ОЛ!L73>ОЛ!L19,Data!G23,\"\"),\nIF(ОЛ!H68=Data!E3,IF(ОЛ!L73<>ОЛ!L19,Data!H23,\"\"),\"#ERROR\"))),\n\"\")","v":""},"при независимом подключении системы вентиляции температура нагреваемой среды на выходе из ТО должна быть ниже температуры греющей среды на его входе","при зависимом подключении системы вентиляции температура нагреваемой среды на выходе из узла не может быть выше температуры греющей среды на его входе","при зависимом подключении системы вентиляции без регулирования температура среды на выходе из узла должна равняться температуре среды на его входе"]
[1.163E-3,"схема",{"$f":"IF(ISNUMBER(C23),IF(AND(C23>0.2,C23<1),\"двухступенчатая\",\"одноступенчатая\"),\"-\")","v":"-"},"t2в и T1",{"$f":"IF(AND(ОЛ!L20<>\"\",ОЛ!L72<>\"\"),IF(ОЛ!H68=Data!E1,IF(ОЛ!L72>=ОЛ!L20,Data!F24,\"\"),IF(OR(ОЛ!H68=Data!E2,ОЛ!H68=Data!E3),IF(ОЛ!L72<>ОЛ!L20,Data!G24,\"\"),\"#ERROR\")),\"\")","v":""},"при независимом подключении системы вентиляции температура нагреваемой среды на входе в ТО должна быть ниже температуры греющей среды на его выходе","при зависимом подключении системы вентиляции температура нагреваемой среды на входе в узел должна равняться температуре греющей среды на его выходе"]
[1.163,null,null,"t3 и T2л",{"$f":"IF(AND(ОЛ!L21<>\"\",ОЛ!L59<>\"\"),IF(ОЛ!H51=Data!D1,IF(ОЛ!L59>=ОЛ!L21,Data!F25,\"\"),IF(ОЛ!H51=Data!D2,IF(ОЛ!L59>ОЛ!L21,Data!G25,\"\"),\"#ERROR\")),\"\")","v":""},"при закрытом подключении системы ГВС температура нагреваемой среды на выходе из ТО должна быть ниже температуры греющей среды на его входе","при открытом подключении системы ГВС температура нагреваемой среды на выходе из узла не может быть выше температуры греющей среды на его входе"]
[1163,null,null,"tхв и T1л",{"$f":"IF(AND(ОЛ!L22<>\"\",ОЛ!L58<>\"\"),IF(ОЛ!H51=Data!D1,IF(ОЛ!L58>=ОЛ!L22,Data!F26,\"\"),IF(ОЛ!H51=Data!D2,\"\",\"#ERROR\")),\"\")","v":""},"при закрытом подключении системы ГВС температура нагреваемой среды на входе в ТО должна быть ниже температуры греющей среды на его выходе"]
[1163000,null,null,"T1>T2",{"$f":"IF(AND(ОЛ!L19<>\"\",ОЛ!L20<>\"\"),IF(ОЛ!L19<=ОЛ!L20,Data!F27,\"\"),\"\")","v":""},"температура в подающем трубопроводе должна быть больше, чем в обратном"]
[{"$nulls":3},"T1л>T2л",{"$f":"IF(AND(ОЛ!L21<>\"\",ОЛ!L22<>\"\"),IF(ОЛ!L21<=ОЛ!L22,Data!F28,\"\"),\"\")","v":""},"температура в подающем трубопроводе должна быть больше, чем в обратном"]
[{"$nulls":3},"P1>P2",{"$f":"IF(AND(ОЛ!L23<>\"\",ОЛ!L24<>\"\"),IF(C41<=C42,Data!F29,\"\"),\"\")","v":""},"↖ давление в подающем трубопроводе должно быть больше, чем в обратном"]
[{"$nulls":3},"T3>tх.в.",{"$f":"IF(AND(ОЛ!L58<>\"\",ОЛ!L59<>\"\"),IF(ОЛ!L59>ОЛ!L58,\"\",Data!F30),\"\")","v":""},"температура нагреваемой среды на входе в теплообменник должна быть ниже, чем на его выходе"]
[{"$nulls":3},"P1л>P2л",{"$f":"IF(AND(ОЛ!L25<>\"\",ОЛ!L26<>\"\"),IF(C43<=C44,Data!F29,\"\"),\"\")","v":""},"↖ давление в подающем трубопроводе должно быть больше, чем в обратном"]
{"$rows_empty":9}
[9806.65,"P1 =",{"$f":"INDEX($A$41:$A$60,MATCH(ОЛ!P23,Data!$B$1:$B$20,0))*ОЛ!L23","v":0}]
[1,"P2 =",{"$f":"INDEX($A$41:$A$60,MATCH(ОЛ!P24,Data!$B$1:$B$20,0))*ОЛ!L24","v":0}]
[1000,"P1л =",{"$f":"INDEX($A$41:$A$60,MATCH(ОЛ!P25,Data!$B$1:$B$20,0))*ОЛ!L25","v":0}]
[1000000,"P2л =",{"$f":"INDEX($A$41:$A$60,MATCH(ОЛ!P26,Data!$B$1:$B$20,0))*ОЛ!L26","v":0}]
[98066.5]
[100000]
{"$rows_empty":52}
["Версия файла"]
["202009021505"]